bitfinex/quotes_BTCUSD_20250812
["timestamp","ask_amount","ask_price","bid_price","bid_amount"]
[1755029806475,0.00160538,119880.0,119870.0,0.61394017]
[1755029806692,0.00160538,119880.0,119870.0,1.3249123]
[1755029806909,0.00160538,119880.0,119870.0,1.86284443]
[1755029807140,0.00160538,119880.0,119870.0,0.83698017]
[1755029807593,0.00160538,119880.0,119870.0,0.46458817]
[1755029807594,0.00447538,119880.0,119870.0,0.46458817]
[1755029807807,0.00447538,119880.0,119870.0,1.4351523]
[1755029808012,0.00447538,119880.0,119870.0,0.92222017]
[1755029808221,0.00447538,119880.0,119870.0,1.4351523]
[1755029808466,0.00447538,119880.0,119870.0,0.92222017]
[1755029808669,0.00447538,119880.0,119870.0,1.25245139]
[1755029808888,0.00447538,119880.0,119870.0,0.75450017]
[1755029809089,0.00447538,119880.0,119870.0,1.62025139]
[1755029809296,0.00160538,119880.0,119870.0,0.75450017]
[1755029809547,0.00160538,119880.0,119870.0,1.3531177]
[1755029809784,0.00160538,119880.0,119870.0,1.76797039]
[1755029809988,0.00160538,119880.0,119870.0,1.27694457]
[1755029810192,0.00160538,119880.0,119870.0,1.27794457]
[1755029810401,0.00447538,119880.0,119870.0,0.87263357]
[1755029810608,0.00447538,119880.0,119870.0,1.49024339]
[1755029810840,0.00447538,119880.0,119870.0,0.80141217]
[1755029811078,0.00447538,119880.0,119870.0,0.83586817]
[1755029811283,0.00447538,119880.0,119870.0,0.99148617]
[1755029811493,0.00447538,119880.0,119870.0,1.48943739]
[1755029811494,0.00160538,119880.0,119870.0,1.48943739]
[1755029812778,0.00160538,119880.0,119870.0,0.99148617]
[1755029812988,0.00160538,119880.0,119870.0,1.48943739]
[1755029813643,0.00447538,119880.0,119870.0,1.16365939]
[1755029813853,0.00447538,119880.0,119870.0,1.33345939]
[1755029814259,0.00447538,119880.0,119870.0,1.16365939]
[1755029814465,0.00447538,119880.0,119870.0,0.83538817]
[1755029814674,0.00447538,119880.0,119870.0,1.33333939]
[1755029815291,0.00160538,119880.0,119870.0,2.40452439]
[1755029815493,0.00041538,119880.0,119870.0,2.40946439]
[1755029815692,0.00041538,119880.0,119870.0,2.23978439]
[1755029815907,0.00041538,119880.0,119870.0,2.29538639]
[1755029816105,0.00162538,119880.0,119870.0,1.94555239]
[1755029816333,0.00162538,119880.0,119870.0,1.29028217]
[1755029816537,0.00162538,119880.0,119870.0,0.89958917]
[1755029816736,0.00162538,119880.0,119870.0,1.28364339]
[1755029816940,0.00451538,119880.0,119870.0,1.53289939]
[1755029817228,0.00451538,119880.0,119870.0,0.66558817]
[1755029817392,0.00451538,119880.0,119870.0,1.33269939]
[1755029817966,0.00162538,119880.0,119870.0,1.33269939]
[1755029818170,0.00041538,119880.0,119870.0,2.46055339]
[1755029818372,0.00041538,119880.0,119870.0,1.52177957]
[1755029818603,0.00239538,119880.0,119870.0,1.98576779]
[1755029818801,0.00527538,119880.0,119870.0,1.71510979]
[1755029819004,0.00527538,119880.0,119870.0,0.95323417]
[1755029819205,0.00239538,119880.0,119870.0,0.95323417]
[1755029819425,0.00239538,119880.0,119870.0,1.45326539]
[1755029819801,0.00239538,119880.0,119870.0,0.95850417]
[1755029820011,0.00041538,119880.0,119870.0,1.45645539]
[1755029820222,0.00041538,119880.0,119870.0,0.95850417]
[1755029820429,0.00240538,119880.0,119870.0,1.45645539]
[1755029820645,0.00240538,119880.0,119870.0,0.95850417]
[1755029820854,0.17513192,119910.0,119900.0,0.19391549]
[1755029821072,0.00833958,119910.0,119900.0,0.36911549]
[1755029821277,0.17513134,119910.0,119900.0,0.36911549]
[1755029821692,0.29932943,119920.0,119900.0,0.39414649]
[1755029821905,0.29947556,119920.0,119900.0,0.89209771]
[1755029822108,0.29947556,119920.0,119910.0,0.49795122]
[1755029822322,0.10034613,119920.0,119910.0,0.49795122]
[1755029822538,0.10034613,119920.0,119910.0,0.87990362]
[1755029822748,0.10034613,119920.0,119910.0,0.88309362]
[1755029823161,0.10034613,119920.0,119910.0,0.3819524]
[1755029823367,0.11779515,119920.0,119910.0,0.87990362]
[1755029823567,0.11779515,119920.0,119910.0,0.95570147]
[1755029823824,0.11779515,119920.0,119910.0,0.45775025]
[1755029824023,0.11779515,119920.0,119910.0,0.46094025]
[1755029824230,0.11779515,119920.0,119910.0,0.95889147]
[1755029824437,0.10034613,119920.0,119910.0,0.46302025]
[1755029825070,0.10034613,119920.0,119910.0,1.16097147]
[1755029825284,0.10034613,119920.0,119910.0,0.84191425]
[1755029825502,0.09057575,119920.0,119910.0,1.33986547]
[1755029825908,0.09057575,119920.0,119910.0,0.86699555]
[1755029826135,0.01742173,119920.0,119910.0,1.37270979]
[1755029826399,0.16679914,119970.0,119930.0,0.35]
[1755029826611,0.01793602,119960.0,119940.0,0.18092874]
[1755029826852,0.000487,119960.0,119940.0,0.25948325]
[1755029827065,0.00826235,119960.0,119940.0,0.26267325]
[1755029827297,0.00826235,119960.0,119950.0,0.64795122]
[1755029827731,0.00826235,119960.0,119950.0,0.15]
[1755029827939,0.01744902,119950.0,119940.0,0.75743447]
[1755029828114,0.01744902,119950.0,119940.0,0.25948325]
[1755029828565,0.000487,119960.0,119950.0,0.35]
[1755029828781,0.0082631,119960.0,119950.0,0.93067447]
[1755029828984,0.0082631,119960.0,119950.0,0.43591325]
[1755029829221,0.000487,119960.0,119950.0,0.43591325]
[1755029829431,0.000487,119960.0,119950.0,0.73067447]
[1755029829861,0.000487,119960.0,119950.0,0.23591325]
[1755029830080,0.000487,119960.0,119950.0,0.75888147]
[1755029830288,0.000487,119960.0,119950.0,0.25774025]
[1755029830923,0.000487,119960.0,119950.0,0.75569147]
[1755029831141,0.000487,119960.0,119950.0,0.25774025]
[1755029831772,0.18465826,119960.0,119950.0,0.10774025]
[1755029831984,0.01793602,119960.0,119950.0,0.10774025]
[1755029832626,0.01793602,119960.0,119950.0,0.11190865]
[1755029832839,0.01793602,119960.0,119950.0,0.76304987]
[1755029833064,0.01793602,119960.0,119950.0,0.26301025]
[1755029833279,0.000487,119960.0,119950.0,0.26301025]
[1755029833490,0.000487,119960.0,119950.0,0.76096147]
[1755029833746,0.000487,119960.0,119950.0,0.26301025]
[1755029833965,0.000487,119960.0,119950.0,1.24449625]
[1755029834176,0.000487,119960.0,119950.0,2.24039869]
[1755029834382,0.000487,119960.0,119950.0,2.24732409]
[1755029834662,0.000487,119960.0,119950.0,1.25142165]
[1755029834907,0.000487,119960.0,119950.0,1.24449625]
[1755029835586,0.000487,119960.0,119950.0,1.74244747]
[1755029835798,0.000487,119960.0,119950.0,1.19462825]
[1755029836247,0.000487,119960.0,119950.0,1.69257947]
[1755029836463,0.000487,119960.0,119950.0,1.19462825]
[1755029836674,0.000487,119960.0,119950.0,1.09440365]
[1755029836888,0.000487,119960.0,119950.0,0.65490065]
[1755029837102,0.000487,119960.0,119950.0,0.64797525]
[1755029837739,0.000487,119960.0,119950.0,0.26301025]
[1755029837958,0.000487,119960.0,119950.0,0.45057025]
[1755029838588,0.000487,119960.0,119950.0,0.94852147]
[1755029838818,0.000487,119960.0,119950.0,0.45749565]
[1755029839522,0.01793602,119960.0,119950.0,0.45057025]
[1755029839780,0.18465826,119960.0,119950.0,0.44846025]
[1755029840020,0.01793602,119960.0,119950.0,0.44846025]
[1755029840271,0.01787766,119960.0,119950.0,0.45165025]
[1755029840500,0.00042864,119960.0,119950.0,0.45857565]
[1755029840724,0.00042864,119960.0,119950.0,0.45165025]
[1755029840952,0.00042864,119960.0,119950.0,0.95168147]
[1755029841419,0.00042864,119960.0,119950.0,0.45373025]
[1755029841891,0.00833402,119990.0,119960.0,0.2]
[1755029842118,0.00014604,119980.0,119970.0,0.00208385]
[1755029842341,0.00014604,119980.0,119970.0,0.01757188]
[1755029842829,0.00014604,119980.0,119970.0,0.22193785]
[1755029843048,0.00014604,119980.0,119970.0,0.23533997]
[1755029843941,0.01759506,119980.0,119970.0,0.223044]
[1755029844158,0.00014604,119980.0,119970.0,0.30784725]
[1755029844370,0.00014604,119980.0,119970.0,0.45784725]
[1755029844822,0.01566976,119980.0,119970.0,0.45784725]
[1755029845047,0.01566976,119980.0,119970.0,0.26300725]
[1755029845277,0.01566976,119980.0,119970.0,0.45816725]
[1755029845947,0.00014604,119980.0,119970.0,0.45816725]
[1755029846570,0.00014604,119980.0,119970.0,0.10773725]
[1755029846571,0.16684048,119980.0,119970.0,0.10773725]
[1755029846795,0.16684048,119980.0,119970.0,0.2268194]
[1755029847007,0.1842895,119980.0,119970.0,0.219894]
[1755029847212,0.1842895,119980.0,119970.0,0.19488]
[1755029847850,0.16670834,119970.0,119960.0,0.24156697]
[1755029848279,0.1842895,119980.0,119960.0,0.24196697]
[1755029848531,0.01759506,119980.0,119960.0,0.25208237]
[1755029848780,0.01759506,119980.0,119970.0,0.00319]
[1755029849076,0.01759506,119980.0,119970.0,0.24216095]
[1755029849410,0.01759506,119980.0,119970.0,0.26300725]
[1755029850516,0.01759506,119980.0,119970.0,0.76095847]
[1755029850729,0.01759506,119980.0,119970.0,0.45944725]
[1755029851145,0.01759506,119980.0,119970.0,0.95739847]
[1755029851351,0.01759506,119980.0,119970.0,0.45944725]
[1755029851795,0.01759506,119980.0,119970.0,0.95739847]
[1755029852005,0.01759506,119980.0,119970.0,0.45944725]
[1755029852433,0.01759506,119980.0,119970.0,0.95739847]
[1755029852647,0.01759506,119980.0,119970.0,0.45944725]
[1755029853296,0.01759506,119980.0,119970.0,0.95739847]
[1755029853506,0.01759506,119980.0,119970.0,0.98248724]
[1755029853952,0.01759506,119980.0,119970.0,0.48453602]
[1755029854637,0.00014604,119980.0,119970.0,1.18248724]
[1755029854861,0.00014604,119980.0,119970.0,0.68453602]
[1755029855295,0.00014604,119980.0,119970.0,0.48453602]
[1755029856414,0.00014604,119980.0,119970.0,0.98248724]
[1755029856627,0.00014604,119980.0,119970.0,0.45944725]
[1755029856850,0.00014604,119980.0,119970.0,0.95739847]
[1755029857264,0.00014604,119980.0,119970.0,0.45944725]
[1755029857682,0.00014604,119980.0,119970.0,0.95739847]
[1755029857889,0.00014604,119980.0,119970.0,0.30944725]
[1755029859147,0.00014604,119980.0,119970.0,0.31112725]
[1755029859558,0.00014604,119980.0,119970.0,0.80907847]
[1755029859760,0.00014604,119980.0,119970.0,0.31112725]
[1755029859995,0.00014604,119980.0,119970.0,0.61095847]
[1755029860215,0.01066966,119990.0,119970.0,0.26300725]
[1755029860457,0.01066966,119990.0,119980.0,0.00307]
[1755029860667,0.17735021,119990.0,119980.0,0.51431382]
[1755029860886,0.01066966,119990.0,119980.0,0.51431382]
[1755029861099,0.01066966,119990.0,119980.0,0.030153]
[1755029861307,0.01066966,119990.0,119980.0,0.03223668]
[1755029861535,0.01066966,119990.0,119980.0,0.23083668]
[1755029861781,0.01066966,119990.0,119980.0,0.228753]
[1755029862419,0.17735021,119990.0,119980.0,0.030153]
[1755029862634,0.17735021,119990.0,119980.0,0.03223668]
[1755029862843,0.01066966,119990.0,119980.0,0.23271668]
[1755029863087,0.01066966,119990.0,119980.0,0.230633]
[1755029864724,0.01066966,119990.0,119980.0,0.11287625]
[1755029864937,0.01066966,119990.0,119980.0,0.11704361]
[1755029865363,0.01066966,119990.0,119980.0,0.32124361]
[1755029865604,0.01066966,119990.0,119980.0,0.31703625]
[1755029866515,0.01066966,119990.0,119980.0,0.11287625]
[1755029866998,0.17735021,119990.0,119980.0,0.31667625]
[1755029867241,0.17735021,119990.0,119980.0,0.11287625]
[1755029867468,0.01066966,119990.0,119980.0,0.31663625]
[1755029867929,0.68652403,119990.0,119980.0,0.31683625]
[1755029868174,0.68652403,119990.0,119980.0,0.31527625]
[1755029868426,0.68652403,119990.0,119980.0,0.11135625]
[1755029868662,0.01066966,119990.0,119980.0,0.31519625]
[1755029869121,0.51984348,119990.0,119980.0,0.31515625]
[1755029869601,0.17735021,119990.0,119980.0,0.31515625]
[1755029870522,0.68652403,119990.0,119980.0,0.31515625]
[1755029870746,0.17735021,119990.0,119980.0,0.31515625]
[1755029871885,0.17735021,119990.0,119980.0,0.11135625]
[1755029872126,0.17735021,119990.0,119980.0,0.31495625]
[1755029872558,0.17735021,119990.0,119980.0,0.31523625]
[1755029873191,0.17735021,119990.0,119980.0,0.31503625]
[1755029873628,0.17735021,119990.0,119980.0,0.31719625]
[1755029873986,0.17735021,119990.0,119980.0,0.11135625]
[1755029874188,0.01066966,119990.0,119980.0,0.31719625]
[1755029874401,0.01066966,119990.0,119980.0,0.11135625]
[1755029875063,0.01066966,119990.0,119980.0,0.31695625]
[1755029875267,0.01066966,119990.0,119980.0,0.31691625]
[1755029876211,0.68652403,119990.0,119980.0,0.11135625]
[1755029876406,0.17735021,119990.0,119980.0,0.31687625]
[1755029876806,0.17735021,119990.0,119980.0,0.11135625]
[1755029877009,0.17735021,119990.0,119980.0,0.31683625]
[1755029877432,0.17735021,119990.0,119980.0,0.31667625]
[1755029877761,0.17735021,119990.0,119980.0,0.11135625]
[1755029877944,0.17735021,119990.0,119980.0,0.31667625]
[1755029879937,0.68652403,119990.0,119980.0,0.31305625]
[1755029880375,0.17735021,119990.0,119980.0,0.31305625]
[1755029881598,0.17735021,119990.0,119980.0,0.10773625]
[1755029881799,0.17735021,119990.0,119980.0,0.11090625]
[1755029882009,0.17735021,119990.0,119980.0,0.31630625]
[1755029882204,0.17735021,119990.0,119980.0,0.82548007]
[1755029882412,0.01066966,119990.0,119980.0,0.11297625]
[1755029882618,0.01066966,119990.0,119980.0,0.7056296]
[1755029882911,0.01066966,119990.0,119980.0,0.70146224]
[1755029883115,0.17735021,119990.0,119980.0,0.42422042]
[1755029883330,0.17735021,119990.0,119980.0,0.72647424]
[1755029883547,0.17735021,119990.0,119980.0,0.42398042]
[1755029883765,0.17735021,119990.0,119980.0,0.21206042]
[1755029883966,0.17735021,119990.0,119980.0,0.10432517]
[1755029883967,0.68652403,119990.0,119980.0,0.10432517]
[1755029884171,0.68652403,119990.0,119980.0,0.31072517]
[1755029884372,0.68652403,119990.0,119980.0,0.10432517]
[1755029884373,0.76900846,119990.0,119980.0,0.10432517]
[1755029884579,0.16669444,119980.0,119970.0,0.30428517]
[1755029885024,0.16669444,119980.0,119970.0,0.51052517]
[1755029885457,0.16669444,119980.0,119970.0,0.51040517]
[1755029886754,0.16669444,119980.0,119970.0,0.30428517]
[1755029886982,0.16669444,119980.0,119970.0,0.51028517]
[1755029887691,0.16669444,119980.0,119970.0,0.50996517]
[1755029887903,0.16669444,119980.0,119970.0,0.31000517]
[1755029888311,0.16669444,119980.0,119970.0,0.10432517]
[1755029888517,0.16669444,119980.0,119970.0,0.31000517]
[1755029889326,0.16669444,119980.0,119970.0,0.10432517]
[1755029889531,0.16669444,119980.0,119970.0,0.30976517]
[1755029889942,0.16669444,119980.0,119970.0,0.10432517]
[1755029890163,0.16669444,119980.0,119970.0,0.30920517]
[1755029890576,0.16669444,119980.0,119970.0,0.10432517]
[1755029890989,0.16669444,119980.0,119970.0,0.30920517]
[1755029891196,0.16669444,119980.0,119970.0,0.10432517]
[1755029891415,0.16669444,119980.0,119970.0,0.61873899]
[1755029891625,0.17735021,119990.0,119970.0,0.97369899]
[1755029891835,0.16668055,119990.0,119980.0,0.00525368]
[1755029892038,0.16668055,119990.0,119980.0,0.71917382]
[1755029892243,0.16668055,119990.0,119980.0,0.82349899]
[1755029892453,0.16668055,119990.0,119980.0,0.10956517]
[1755029893110,0.16668055,119990.0,119980.0,0.11164885]
[1755029893313,0.16868055,119990.0,119980.0,0.11164885]
[1755029893518,0.16868055,119990.0,119980.0,0.31456517]
[1755029893759,0.01944902,119990.0,119980.0,0.61873899]
[1755029893972,0.01944902,119990.0,119980.0,0.10956517]
[1755029894184,0.18612957,119990.0,119980.0,0.82570267]
[1755029894395,0.18612957,119990.0,119980.0,0.31444517]
[1755029894813,0.18612957,119990.0,119980.0,0.10956517]
[1755029895074,0.18612957,119990.0,119980.0,0.82566267]
[1755029895316,0.18612957,119990.0,119980.0,0.31440517]
[1755029895537,0.18612957,119990.0,119980.0,0.82357899]
[1755029895975,0.18149957,119990.0,119980.0,0.31440517]
[1755029896206,0.01481902,119990.0,119980.0,0.39712842]
[1755029896438,0.01481902,119990.0,119980.0,0.90714224]
[1755029896662,0.01481902,119990.0,119980.0,0.19228842]
[1755029896984,0.01481902,119990.0,119980.0,0.90726224]
[1755029897395,0.01481902,119990.0,119980.0,0.90722224]
[1755029897617,0.01481902,119990.0,119980.0,0.39804842]
[1755029897822,0.01481902,119990.0,119980.0,0.19228842]
[1755029898035,0.01481902,119990.0,119980.0,0.39776842]
[1755029898238,0.18149957,119990.0,119980.0,0.90694224]
[1755029898690,0.18149957,119990.0,119980.0,0.19228842]
[1755029898912,0.18099957,119990.0,119980.0,0.39748842]
[1755029899128,0.18099957,119990.0,119980.0,0.70146224]
[1755029899357,0.18099957,119990.0,119980.0,0.39716842]
[1755029900249,0.01431902,119990.0,119980.0,0.90634224]
[1755029900458,0.01431902,119990.0,119980.0,0.19228842]
[1755029900675,0.01431902,119990.0,119980.0,0.90694224]
[1755029900892,0.18099957,119990.0,119980.0,0.39776842]
[1755029901119,0.18099957,119990.0,119980.0,0.90694224]
[1755029901331,0.18099957,119990.0,119980.0,0.39776842]
[1755029901592,0.18099957,119990.0,119980.0,0.90694224]
[1755029902047,0.18099957,119990.0,119980.0,0.39776842]
[1755029902252,0.18099957,119990.0,119980.0,0.90682224]
[1755029903782,0.01431902,119990.0,119980.0,0.39764842]
[1755029904218,0.18099957,119990.0,119980.0,0.39764842]
[1755029904428,0.18099957,119990.0,119980.0,0.90682224]
[1755029905515,0.18099957,119990.0,119980.0,0.39764842]
[1755029905760,0.18099957,119990.0,119980.0,0.90682224]
[1755029906421,0.18099957,119990.0,119980.0,0.39764842]
[1755029906648,0.18099957,119990.0,119980.0,0.90682224]
[1755029906864,0.18199957,119990.0,119980.0,0.90682224]
[1755029907298,0.18199957,119990.0,119980.0,0.39764842]
[1755029907503,0.18199957,119990.0,119980.0,0.90682224]
[1755029908778,0.01531902,119990.0,119980.0,0.90682224]
[1755029908995,0.18199957,119990.0,119980.0,0.90682224]
[1755029909446,0.18199957,119990.0,119980.0,0.39764842]
[1755029909654,0.18199957,119990.0,119980.0,0.90682224]
[1755029909865,0.18199957,119990.0,119980.0,0.39764842]
[1755029910292,0.18199957,119990.0,119980.0,0.90682224]
[1755029910950,0.18199957,119990.0,119980.0,0.90430224]
[1755029911153,0.18199957,119990.0,119980.0,0.39512842]
[1755029912741,0.01531902,119990.0,119980.0,0.39512842]
[1755029912964,0.18199957,119990.0,119980.0,0.19228842]
[1755029913220,0.18199957,119990.0,119980.0,0.39732842]
[1755029913671,0.01531902,119990.0,119980.0,0.39732842]
[1755029914088,0.18199957,119990.0,119980.0,0.29300325]
[1755029914297,0.01531902,119990.0,119980.0,0.29300325]
[1755029914512,0.18199957,119990.0,119980.0,0.08796325]
[1755029914727,0.18199957,119990.0,119980.0,0.29929061]
[1755029914947,0.01531902,119990.0,119980.0,0.29512325]
[1755029915156,0.01531902,119990.0,119980.0,0.29560325]
[1755029915368,0.01531902,119990.0,119980.0,0.400147]
[1755029916035,0.001,119990.0,119980.0,0.400147]
[1755029916245,0.001,119990.0,119980.0,0.70168082]
[1755029916453,0.001,119990.0,119980.0,0.29840325]
[1755029916664,0.001,119990.0,119980.0,0.80757707]
[1755029916913,0.001,119990.0,119980.0,0.32341325]
[1755029917556,0.001,119990.0,119980.0,1.12342625]
[1755029917770,0.001,119990.0,119980.0,0.94873407]
[1755029917980,0.001,119990.0,119980.0,0.43956025]
[1755029919079,0.001,119990.0,119980.0,0.42912025]
[1755029919298,0.001,119990.0,119980.0,0.45217025]
[1755029919563,0.001,119990.0,119980.0,0.60168473]
[1755029919790,0.001,119990.0,119980.0,0.81736473]
[1755029920003,0.001,119990.0,119980.0,0.60168473]
[1755029920221,0.001,119990.0,119980.0,1.53621673]
[1755029920889,0.001,119990.0,119980.0,1.75665673]
[1755029921093,0.001,119990.0,119980.0,1.53621673]
[1755029921520,0.16768055,119990.0,119980.0,1.75705673]
[1755029922013,0.16768055,119990.0,119980.0,1.53621673]
[1755029922272,0.16768055,119990.0,119980.0,1.75785673]
[1755029922711,0.16768055,119990.0,119980.0,2.26703055]
[1755029922918,0.16768055,119990.0,119980.0,1.75785673]
[1755029923132,0.16768055,119990.0,119980.0,1.53621673]
[1755029923359,0.001,119990.0,119980.0,1.75801673]
[1755029923570,0.001,119990.0,119980.0,1.53621673]
[1755029923571,0.16768055,119990.0,119980.0,1.53621673]
[1755029923787,0.001,119990.0,119980.0,1.75821673]
[1755029923991,0.001,119990.0,119980.0,1.53621673]
[1755029924427,0.001,119990.0,119980.0,1.75873673]
[1755029924688,0.001,119990.0,119980.0,1.56469008]
[1755029924908,0.001,119990.0,119980.0,1.55926673]
[1755029925121,0.001,119990.0,119980.0,1.78426673]
[1755029925803,0.001,119990.0,119980.0,1.07692573]
[1755029926051,0.16768055,119990.0,119980.0,0.78097373]
[1755029926272,0.16768055,119990.0,119980.0,1.00545373]
[1755029926703,0.16768055,119990.0,119980.0,1.36499307]
[1755029926922,0.001,119990.0,119980.0,1.14063307]
[1755029927136,0.16768055,119990.0,119980.0,0.63145925]
[1755029927356,0.16768055,119990.0,119980.0,1.14063307]
[1755029927561,0.16768055,119990.0,119980.0,0.48707325]
[1755029927994,0.16768055,119990.0,119980.0,0.71243325]
[1755029928848,0.16768055,119990.0,119980.0,1.22160707]
[1755029929059,0.16768055,119990.0,119980.0,0.71247325]
[1755029929274,0.16768055,119990.0,119980.0,0.62214707]
[1755029929499,0.16768055,119990.0,119980.0,0.31297325]
[1755029929715,0.16768055,119990.0,119980.0,1.04754707]
[1755029929938,0.16768055,119990.0,119980.0,0.53837325]
[1755029930152,0.16768055,119990.0,119980.0,0.31297325]
[1755029930382,0.16768055,119990.0,119980.0,0.53793325]
[1755029931050,0.16768055,119990.0,119980.0,0.28272325]
[1755029931518,0.16768055,119990.0,119980.0,0.61222161]
[1755029931736,0.16768055,119990.0,119980.0,1.12139543]
[1755029931947,0.16768055,119990.0,119980.0,0.61222161]
[1755029932471,0.16768055,119990.0,119980.0,0.50768325]
[1755029932685,0.16768055,119990.0,119980.0,0.51111325]
[1755029932686,0.001,119990.0,119980.0,0.51111325]
[1755029932895,0.001,119990.0,119980.0,0.28595325]
[1755029933328,0.001,119990.0,119980.0,0.51107325]
[1755029933542,0.001,119990.0,119980.0,0.28595325]
[1755029933752,0.001,119990.0,119980.0,0.51091325]
[1755029934178,0.16768055,119990.0,119980.0,0.51091325]
[1755029934395,0.16768055,119990.0,119980.0,0.51083325]
[1755029934613,0.16768055,119990.0,119980.0,0.28272325]
[1755029934862,0.18512957,119990.0,119980.0,0.08272325]
[1755029935122,0.18512957,119990.0,119980.0,0.30800325]
[1755029935590,0.18512957,119990.0,119980.0,0.81717707]
[1755029935836,0.18512957,119990.0,119980.0,0.08272325]
[1755029936078,0.18512957,119990.0,119980.0,0.81689707]
[1755029936503,0.18512957,119990.0,119980.0,0.59189707]
[1755029936725,0.18512957,119990.0,119980.0,0.30744325]
[1755029936939,0.18512957,119990.0,119980.0,0.30740325]
[1755029937593,0.18512957,119990.0,119980.0,0.59189707]
[1755029937814,0.18512957,119990.0,119980.0,0.08272325]
[1755029938032,0.18512957,119990.0,119980.0,0.80920693]
[1755029938249,0.18512957,119990.0,119980.0,0.31372325]
[1755029938470,0.18512957,119990.0,119980.0,0.82289707]
[1755029938711,0.18512957,119990.0,119980.0,0.31884325]
[1755029939131,0.18512957,119990.0,119980.0,0.82801707]
[1755029940236,0.18512957,119990.0,119980.0,0.31884325]
[1755029940445,0.18512957,119990.0,119980.0,0.31856325]
[1755029940656,0.18512957,119990.0,119980.0,0.60213707]
[1755029940884,0.18512957,119990.0,119980.0,0.31320325]
[1755029941111,0.18512957,119990.0,119980.0,0.005]
[1755029941352,0.69430339,119990.0,119980.0,0.005]
[1755029941573,0.69430339,119990.0,119960.0,0.14951448]
[1755029941574,0.7523226,119990.0,119960.0,0.14951448]
[1755029941790,0.67588216,119970.0,119960.0,0.00014604]
[1755029942001,0.16670834,119970.0,119960.0,0.00014604]
[1755029942218,0.18415736,119970.0,119960.0,0.00014604]
[1755029942441,0.28931179,119970.0,119960.0,0.00014604]
[1755029942676,0.43190736,119970.0,119960.0,0.00014604]
[1755029942903,0.94108118,119970.0,119960.0,0.00014604]
[1755029943118,0.43190736,119970.0,119960.0,0.00014604]
[1755029943332,0.94108118,119970.0,119960.0,0.00014604]
[1755029943767,0.43190736,119970.0,119960.0,0.00014604]
[1755029944002,0.49168868,119970.0,119960.0,0.00014604]
[1755029944234,1.11081955,119970.0,119960.0,0.00014604]
[1755029944472,1.11081955,119970.0,119930.0,0.225]
[1755029944473,0.18419906,119940.0,119930.0,0.225]
[1755029945124,0.18422687,119920.0,119910.0,0.35351665]
[1755029945355,0.18422687,119920.0,119910.0,0.15788787]
[1755029945581,0.18422687,119920.0,119910.0,0.23349339]
[1755029946222,0.18422687,119920.0,119910.0,0.23869339]
[1755029946427,0.18427548,119920.0,119910.0,0.23869339]
[1755029946579,0.18427548,119920.0,119910.0,0.23032]
[1755029946991,0.18427548,119920.0,119910.0,0.23132]
[1755029947998,0.18427548,119920.0,119910.0,0.74049382]
[1755029948207,0.18427548,119920.0,119910.0,0.23132]
[1755029948479,0.18427548,119920.0,119910.0,0.74049382]
[1755029949026,0.18427548,119920.0,119910.0,0.23132]
[1755029949361,0.18427548,119920.0,119910.0,0.74049382]
[1755029949761,0.18427548,119920.0,119910.0,0.23132]
[1755029950304,0.18427548,119920.0,119910.0,0.74049382]
[1755029951136,0.18427548,119920.0,119910.0,0.31404325]
[1755029951348,0.18427548,119920.0,119910.0,0.82321707]
[1755029951747,0.18427548,119920.0,119910.0,0.31404325]
[1755029952006,0.18427548,119920.0,119910.0,0.82321707]
[1755029952218,0.16682646,119920.0,119910.0,0.46404325]
[1755029952447,0.16682646,119920.0,119910.0,0.82321707]
[1755029952868,0.16682646,119920.0,119910.0,0.98634996]
[1755029952869,4.861e-05,119920.0,119910.0,0.98634996]
[1755029953081,4.861e-05,119920.0,119910.0,2.0046976]
[1755029953290,4.861e-05,119920.0,119910.0,0.73089096]
[1755029953501,4.861e-05,119920.0,119910.0,0.68906525]
[1755029953712,4.861e-05,119920.0,119910.0,1.19823907]
[1755029953917,4.861e-05,119920.0,119910.0,0.48906525]
[1755029953918,0.16682646,119920.0,119910.0,0.48906525]
[1755029954129,0.16682646,119920.0,119910.0,0.33694525]
[1755029954130,0.18427548,119920.0,119910.0,0.33694525]
[1755029954386,0.18427548,119920.0,119910.0,0.82309707]
[1755029954590,0.18427548,119920.0,119910.0,0.31392325]
[1755029954802,0.18427548,119920.0,119910.0,0.82309707]
[1755029955009,0.18427548,119920.0,119910.0,0.226]
[1755029955632,0.18424078,119910.0,119900.0,0.19713549]
[1755029955843,0.18424078,119910.0,119900.0,0.41627549]
[1755029956934,0.16680567,119900.0,119890.0,0.1]
[1755029957145,0.77591294,119900.0,119890.0,1e-08]
[1755029957793,0.85863619,119900.0,119890.0,1e-08]
[1755029958278,0.85863619,119900.0,119850.0,0.26724771]
[1755029958279,0.18429643,119870.0,119850.0,0.26724771]
[1755029958499,0.16686133,119860.0,119850.0,0.22112]
[1755029958715,0.18431035,119860.0,119850.0,0.22112]
[1755029959781,0.18435892,119860.0,119850.0,0.22112]
[1755029960210,0.18435892,119860.0,119850.0,0.22632]
[1755029960630,0.18435892,119860.0,119850.0,0.22732]
[1755029961064,0.18535892,119860.0,119850.0,0.22732]
[1755029961276,0.18535892,119860.0,119850.0,0.22534]
[1755029961923,0.18535892,119860.0,119850.0,0.22732]
[1755029962136,0.18535892,119860.0,119850.0,0.22632]
[1755029962340,0.18535892,119860.0,119850.0,0.22732]
[1755029962557,0.22057955,119860.0,119850.0,0.22732]
[1755029963187,0.18535892,119860.0,119850.0,0.22732]
[1755029966626,0.18535892,119860.0,119850.0,0.87576791]
[1755029967303,0.18535892,119860.0,119850.0,0.95849116]
[1755029967304,0.1679099,119860.0,119850.0,0.95849116]
[1755029967513,0.1679099,119860.0,119850.0,1.02533887]
[1755029967723,0.1679099,119860.0,119850.0,0.46004325]
[1755029967935,0.1679099,119860.0,119850.0,0.95849116]
[1755029968148,0.1679099,119860.0,119850.0,0.46004325]
[1755029968364,0.1679099,119860.0,119850.0,0.95849116]
[1755029970137,0.1679099,119860.0,119850.0,0.46004325]
[1755029970547,0.1679099,119860.0,119850.0,0.95849116]
[1755029971424,0.1679099,119860.0,119850.0,0.46004325]
[1755029971648,0.1679099,119860.0,119850.0,1.45693907]
[1755029972094,0.1679099,119860.0,119850.0,0.46004325]
[1755029972311,0.1679099,119860.0,119850.0,0.95849116]
[1755029972524,0.1679099,119860.0,119850.0,0.46004325]
[1755029972748,0.1679099,119860.0,119850.0,0.95849116]
[1755029972968,0.1679099,119860.0,119850.0,0.46004325]
[1755029973188,0.1679099,119860.0,119850.0,0.95849116]
[1755029973858,0.1679099,119860.0,119850.0,0.46004325]
[1755029974293,0.18535892,119860.0,119850.0,0.31004325]
[1755029976273,0.20286758,119860.0,119850.0,0.0014]
[1755029976486,0.20286758,119860.0,119850.0,0.21744]
[1755029976708,0.20286758,119860.0,119850.0,0.0014]
[1755029976926,0.20286758,119860.0,119850.0,0.21732]
[1755029977830,0.01744902,119830.0,119820.0,0.00304]
[1755029978055,0.18436402,119830.0,119820.0,0.21836]
[1755029979351,0.18436402,119830.0,119820.0,0.22033]